bitfinex-derivatives/quotes_ETHF0:USTF0_20241008
["timestamp","ask_amount","ask_price","bid_price","bid_amount"]
[1728407626903,4.63704,2441.5,2440.9,3.2078]
[1728407627413,3.6126,2441.5,2440.6,0.40991]
[1728407627612,3.2078,2441.2,2440.7,0.40989]
[1728407627903,0.40989,2440.8,2440.5,3.2078]
[1728407628104,3.2078,2441.2,2440.6,0.40991]
[1728407628105,4.23236,2441.2,2440.6,0.40991]
[1728407628306,3.2078,2441.2,2440.6,3.94]
[1728407628506,4.173,2442.0,2440.7,0.4099]
[1728407628507,1.02458,2441.1,2440.7,0.4099]
[1728407628707,3.2078,2441.4,2440.6,3.94]
[1728407628904,0.40985,2441.0,2440.8,0.40987]
[1728407629507,0.40986,2440.9,2440.6,3.94]
[1728407629704,4.23243,2441.0,2440.5,3.6076]
[1728407629912,1.02463,2441.0,2440.6,0.40991]
[1728407630105,1.02463,2441.0,2440.5,3.6076]
[1728407630106,1.81151,2441.1,2440.5,3.61773]
[1728407630314,0.40988,2440.9,2440.7,0.40989]
[1728407630611,0.7869,2441.1,2440.5,3.2078]
[1728407630811,0.80174,2441.1,2440.9,0.40986]
[1728407631508,6.25922515,2444.0,2441.0,4.0968]
[1728407631509,3.2078,2442.0,2441.0,4.0968]
[1728407631710,3.2078,2442.6,2441.9,3.94]
[1728407631914,3.2078,2442.6,2441.9,4.356]
[1728407632112,0.40961,2442.4,2441.8,3.2078]
[1728407632319,1.8309,2442.5,2441.6,3.94]
[1728407632520,0.40965,2442.2,2441.7,0.40972]
[1728407632824,0.40964,2442.3,2441.8,0.40971]
[1728407633425,3.2078,2442.4,2441.6,3.94]
[1728407633719,3.2078,2442.4,2441.4,0.416]
[1728407633926,0.40966,2442.1,2441.7,0.40973]
[1728407634125,3.2078,2442.4,2441.6,3.94]
[1728407634326,0.40968,2442.0,2441.6,4.34974]
[1728407634518,0.40969,2442.0,2441.6,3.94]
[1728407634714,4.23187,2442.4,2441.6,3.94]
[1728407634715,3.2078,2442.4,2441.6,3.94]
[1728407634925,1.02408,2442.3,2441.6,3.94]
[1728407635123,3.2078,2443.6,2442.1,3.2078]
[1728407635323,0.822,2444.3,2442.3,7.1478]
[1728407635324,3.2078,2442.9,2442.3,7.1478]
[1728407635721,0.4213,2442.8,2442.3,7.1478]
[1728407635922,0.4213,2442.8,2442.4,0.40961]
[1728407636118,0.83085,2442.8,2442.4,0.40961]
[1728407636328,0.83085,2442.8,2442.3,7.1478]
[1728407636529,0.4213,2442.8,2442.3,7.55742]
[1728407636726,3.2078,2442.9,2442.3,7.1478]
[1728407636922,0.40956,2442.8,2442.6,3.2078]
[1728407637122,3.6021,2443.0,2442.6,3.2078]
[1728407637325,0.40953,2442.9,2442.6,3.2078]
[1728407637536,0.3943,2443.1,2442.3,3.94]
[1728407637730,0.40957,2442.7,2442.3,3.94]
[1728407637922,0.4043,2442.6,2442.3,4.34963]
[1728407638123,0.4043,2442.6,2442.4,0.4096]
[1728407638436,2.04639,2444.5,2442.4,0.4096]
[1728407638437,0.40936,2444.0,2443.4,0.82123]
[1728407638731,3.2078,2444.8,2443.4,0.82123]
[1728407638732,40.8,2444.1,2443.4,3.2078]
[1728407638926,0.40935,2444.0,2443.4,0.40944]
[1728407639130,41.2016,2444.1,2443.3,3.94]
[1728407639328,0.40935,2444.0,2443.4,0.40944]
[1728407639730,0.40935,2444.0,2443.4,3.61724]
[1728407640231,0.40936,2444.0,2443.4,3.61724]
[1728407640630,0.40935,2444.0,2443.4,3.2078]
[1728407640827,0.40936,2444.0,2443.4,3.61723]
[1728407641027,0.40935,2444.0,2443.4,3.61723]
[1728407641329,0.40937,2443.9,2443.4,3.2078]
[1728407641536,0.4016,2444.1,2443.4,3.2078]
[1728407641734,0.40938,2443.9,2443.4,3.61724]
[1728407642030,0.40938,2443.9,2443.4,3.2078]
[1728407642031,3.2078,2443.9,2443.4,3.2078]
[1728407642222,4.092,2443.8,2443.4,3.2078]
[1728407642428,0.4042,2443.7,2443.4,3.2078]
[1728407642836,0.40943,2443.5,2443.4,3.2078]
[1728407643329,0.40953,2442.9,2442.6,3.94]
[1728407643530,1.02366,2443.3,2442.6,3.94]
[1728407643531,1.0237,2443.2,2442.6,3.94]
[1728407643831,0.4042,2443.1,2442.6,3.94]
[1728407644330,1.84112,2443.4,2443.0,0.4095]
[1728407644331,1.22696,2443.4,2443.0,0.4095]
[1728407644533,0.8175,2443.4,2442.7,3.2078]
[1728407644835,0.40946,2443.3,2442.9,0.40951]
[1728407645228,0.4014,2443.4,2442.9,3.94]
[1728407645430,0.4014,2443.4,2443.1,3.61729]
[1728407645731,0.4014,2443.4,2443.1,3.2078]
[1728407646034,3.2078,2443.8,2443.1,3.2078]
[1728407646335,1.43277,2443.9,2443.2,4.76338]
[1728407646535,0.8406,2444.0,2443.3,0.40945]
[1728407646536,0.4094,2443.7,2443.3,0.40945]
[1728407646838,0.40939,2443.8,2443.2,4.3539]
[1728407647032,1.441,2444.0,2443.2,4.3539]
[1728407647033,0.4094,2443.7,2443.2,4.3539]
[1728407647229,0.4094,2443.7,2443.3,0.40945]
[1728407647429,0.4094,2443.7,2443.4,0.40944]
[1728407647632,1.441,2444.0,2443.4,3.61724]
[1728407647828,0.4094,2443.7,2443.4,3.61724]
[1728407648030,0.40937,2443.9,2443.6,0.4094]
[1728407648433,0.40942,2443.6,2443.4,3.2078]
[1728407648630,0.4094,2443.7,2443.4,3.61724]
[1728407648828,0.40939,2443.7,2443.4,3.2078]
[1728407649033,0.40939,2443.7,2443.3,0.40945]
[1728407649339,0.40939,2443.7,2443.1,7.1478]
[1728407649340,1.02349,2443.7,2443.1,7.1478]
[1728407649540,0.40951,2443.0,2442.8,7.5596]
[1728407649730,3.2078,2443.4,2442.8,7.1478]
[1728407649931,0.40953,2442.9,2442.8,3.2078]
[1728407650245,0.40958,2442.6,2442.5,7.1478]
[1728407650536,1.44449,2442.8,2442.2,3.94]
[1728407650729,0.4206,2442.8,2442.2,3.94]
[1728407650930,0.40961,2442.5,2442.2,4.34965]
[1728407651132,0.40962,2442.4,2442.2,3.94]
[1728407651343,0.4164,2442.6,2442.2,3.94]
[1728407651534,0.4096,2442.5,2442.2,4.34964]
[1728407652427,0.4164,2442.6,2442.2,3.94]
[1728407652636,3.2078,2443.2,2442.5,3.94]
[1728407652836,1.4333,2443.0,2442.5,4.34959]
[1728407653036,0.40955,2442.8,2442.5,4.34959]
[1728407653436,40.8,2443.1,2442.5,3.94]
[1728407653636,0.40952,2443.0,2442.7,0.40956]
[1728407653937,0.40954,2442.9,2442.5,3.94]
[1728407654238,0.40955,2442.8,2442.5,4.34958]
[1728407654428,0.40956,2442.7,2442.5,4.34958]
[1728407654734,0.40956,2442.8,2442.5,4.34958]
[1728407655530,1.02379,2443.0,2442.5,3.94]
[1728407655728,41.2239,2443.1,2442.5,3.94]
[1728407655941,0.40954,2442.9,2442.7,3.2078]
[1728407656243,0.40955,2442.8,2442.7,3.2078]
[1728407656540,0.40955,2442.8,2441.7,1.0243]
[1728407656541,0.40963,2442.3,2442.2,3.94]
[1728407656735,0.8115,2442.7,2442.2,3.94]
[1728407656934,0.40963,2442.3,2442.2,3.94]
[1728407657431,0.40965,2442.2,2442.1,3.2078]
[1728407658243,0.40968,2442.0,2441.9,3.94]
[1728407658429,0.3883,2442.7,2441.9,7.1478]
[1728407658632,0.3883,2442.7,2442.2,3.2078]
[1728407658633,1.02396,2442.6,2442.2,3.2078]
[1728407658939,0.40964,2442.3,2442.2,3.2078]
[1728407659138,1.02397,2442.6,2442.2,3.2078]
[1728407659334,0.40958,2442.6,2442.3,0.40963]
[1728407659538,0.8115,2442.7,2442.2,3.61744]
[1728407659539,0.4096,2442.5,2442.2,3.61744]
[1728407660337,0.8115,2442.7,2442.0,0.423]
[1728407660540,0.40961,2442.4,2442.2,0.40964]
[1728407660845,0.40961,2442.4,2442.1,0.40966]
[1728407661137,0.40964,2442.3,2442.0,0.83267]
[1728407661342,0.40964,2442.3,2442.0,0.423]
[1728407661541,0.40964,2442.3,2442.0,0.83267]
[1728407661844,1.83543,2442.7,2442.0,0.83267]
[1728407662043,0.8115,2442.7,2441.9,3.2078]
[1728407662245,0.40966,2442.2,2441.9,3.61749]
[1728407662539,1.02406,2442.4,2441.9,3.61749]
[1728407662849,0.40968,2442.0,2441.9,3.2078]
[1728407663140,0.40968,2442.0,2441.6,3.94]
[1728407663141,0.40971,2441.9,2441.6,4.34974]
[1728407663446,1.02408,2442.3,2441.6,0.40974]
[1728407663651,0.40971,2441.8,2441.6,0.40974]
[1728407663945,1.02422,2442.0,2441.5,3.6144]
[1728407664144,0.40971,2441.8,2441.5,3.6144]
[1728407664348,1.02425,2441.9,2441.5,4.02415]
[1728407664349,0.40974,2441.7,2441.5,4.02415]
[1728407664750,0.40974,2441.7,2441.5,8.12015]
[1728407664950,0.40975,2441.6,2441.5,3.6144]
[1728407665149,1.02425,2441.9,2441.5,3.6144]
[1728407665345,0.40974,2441.7,2441.5,4.02415]
[1728407665741,1.02425,2441.9,2441.5,3.6144]
[1728407665742,0.40975,2441.6,2441.5,3.6144]
[1728407666152,0.40975,2441.6,2441.5,3.2078]
[1728407666353,0.40978,2441.4,2441.2,0.4098]
[1728407666549,0.40978,2441.4,2441.1,3.6195]
[1728407666747,1.02438,2441.6,2441.2,0.4098]
[1728407666952,0.4098,2441.3,2441.2,0.4098]
[1728407667154,0.40981,2441.3,2441.1,4.02932]
[1728407667353,1.02442,2441.5,2441.1,4.02932]
[1728407667652,1.02442,2441.5,2441.1,3.6195]
[1728407667856,0.40985,2441.0,2440.9,0.40986]
[1728407668056,0.40985,2441.0,2440.8,4.02947]
[1728407668249,1.02456,2441.2,2440.8,4.02947]
[1728407668456,0.40986,2440.9,2440.8,4.02947]
[1728407668658,1.02453,2441.3,2440.8,3.6196]
[1728407668857,0.40984,2441.1,2441.0,0.40985]
[1728407669157,0.40983,2441.2,2441.0,0.40985]
[1728407669856,4.173,2441.7,2441.1,3.2078]
[1728407670054,0.40975,2441.6,2441.4,0.40977]
[1728407670556,0.40974,2441.7,2441.5,3.61756]
[1728407670752,1.42438,2441.9,2441.5,3.2078]
[1728407671051,0.40974,2441.7,2441.5,3.61756]
[1728407671256,0.4001,2441.9,2441.5,3.2078]
[1728407671451,0.40972,2441.8,2441.6,0.40974]
[1728407672048,0.40972,2441.8,2441.5,3.2078]
[1728407672049,0.40973,2441.7,2441.5,3.61755]
[1728407672252,0.40972,2441.8,2441.6,0.40974]
[1728407672461,0.40974,2441.7,2441.5,3.61755]
[1728407672662,0.40975,2441.6,2441.5,3.2078]
[1728407674160,1.42436,2441.9,2441.2,3.6259]
[1728407674161,0.4001,2441.9,2441.2,3.6259]
[1728407674361,0.40979,2441.4,2441.2,4.03571]
[1728407674856,1.02437,2441.7,2441.2,3.6259]
[1728407674857,0.4098,2441.3,2441.2,3.6259]
[1728407675055,0.4098,2441.3,2441.2,0.4181]
[1728407675361,0.40979,2441.4,2441.2,0.82791]
[1728407675757,0.4098,2441.3,2441.2,0.4181]
[1728407676157,1.02442,2441.5,2440.9,3.61765]
[1728407676363,0.40985,2441.0,2440.9,3.61766]
[1728407676558,0.40985,2441.0,2440.9,3.2078]
[1728407678361,1.02458,2441.1,2440.5,3.2078]
[1728407678661,0.40991,2440.7,2440.5,3.61773]
[1728407678864,1.02462,2441.1,2440.5,3.2078]
[1728407679055,1.02462,2441.1,2440.8,3.61768]
[1728407679056,0.40986,2441.0,2440.8,3.61768]
[1728407679262,0.40986,2441.0,2440.8,3.2078]
[1728407679263,0.40985,2441.0,2440.8,3.2078]
[1728407679457,0.40985,2441.0,2440.8,3.61767]
[1728407679966,1.02458,2441.1,2440.8,3.61768]
[1728407680167,0.40986,2441.0,2440.8,3.61768]
[1728407680357,1.02458,2441.1,2440.9,0.40986]
[1728407680358,0.40984,2441.1,2440.9,0.40986]
[1728407680555,1.4359,2441.3,2441.0,0.40984]
[1728407680556,0.40982,2441.2,2441.0,0.40984]
[1728407680765,0.40982,2441.2,2441.1,3.2078]
[1728407681567,0.4114,2441.3,2441.1,3.2078]
[1728407681763,0.4098,2441.3,2441.2,0.40981]
[1728407681966,0.4098,2441.3,2441.1,3.61762]
[1728407684561,0.40981,2441.2,2441.1,3.61762]
[1728407684767,1.02443,2441.5,2441.1,3.61762]
[1728407684972,0.40981,2441.3,2441.1,3.61762]
[1728407685670,0.4098,2441.3,2441.2,0.40981]
[1728407686275,1.02443,2441.5,2441.1,3.61763]
[1728407686479,0.40981,2441.2,2441.1,3.2078]
[1728407688173,0.40981,2441.3,2441.1,3.61762]
[1728407688471,0.40981,2441.2,2441.1,3.61762]
[1728407688666,0.40981,2441.2,2441.1,3.2078]
[1728407691668,0.40981,2441.2,2441.1,3.61763]
[1728407691970,0.40981,2441.3,2441.2,0.40981]
[1728407692374,1.02449,2441.4,2441.1,3.2078]
[1728407692573,4.0087,2441.6,2441.1,3.2078]
[1728407692877,0.40981,2441.2,2441.1,3.2078]
[1728407693073,0.40981,2441.2,2441.1,3.61763]
[1728407693571,0.40981,2441.2,2441.1,3.2078]
[1728407695379,0.40985,2441.0,2440.9,3.2078]
[1728407696182,0.40985,2441.0,2440.7,0.4099]
[1728407696369,0.40985,2441.0,2440.6,7.43259]
[1728407696574,0.40985,2441.0,2440.9,0.40986]
[1728407696770,1.02454,2441.2,2441.0,0.40984]
[1728407696771,0.40984,2441.1,2441.0,0.40984]
[1728407697379,0.40984,2441.1,2440.9,3.2078]
[1728407697380,0.40983,2441.1,2440.9,3.61765]
[1728407700175,1.02444,2441.5,2440.9,3.2078]
[1728407700577,1.02447,2441.4,2441.1,0.40983]
[1728407700883,0.40981,2441.2,2441.1,0.40983]
[1728407701278,0.8087,2441.6,2440.9,3.6056]
[1728407701474,0.40985,2441.0,2440.9,0.3978]
[1728407702274,3.2078,2441.3,2440.6,3.2078]
[1728407702483,1.02448,2441.4,2441.0,0.40983]
[1728407702683,7.2165,2441.6,2440.9,3.2078]
[1728407702884,1.83308,2441.6,2440.9,7.43246]
[1728407703182,0.40978,2441.5,2441.2,3.6176]
[1728407703375,0.40978,2441.5,2441.3,0.40979]
[1728407703791,0.8087,2441.6,2441.3,3.2]
[1728407704087,0.3876,2441.8,2441.5,6.4078]
[1728407704277,0.3876,2441.8,2441.7,3.60973]
[1728407704480,0.3876,2441.8,2441.7,4.33973]
[1728407704682,1.02398,2442.6,2442.0,0.40967]
[1728407704985,0.40967,2442.1,2441.7,7.1378]
[1728407705195,0.40967,2442.1,2441.8,0.4097]
[1728407705385,0.4035,2442.5,2441.8,0.4097]
[1728407705581,1.02408,2442.3,2441.9,3.2078]
[1728407705880,0.40968,2442.1,2441.9,3.6175]
[1728407706085,0.4035,2442.5,2441.9,3.2078]
[1728407706285,0.40962,2442.4,2442.2,0.40964]
[1728407706583,0.40961,2442.5,2442.2,0.40963]
[1728407706886,44.0078,2442.9,2442.2,0.40964]
[1728407707085,0.4096,2442.5,2442.2,0.40964]
[1728407707588,4.0944,2442.5,2441.9,3.2078]
[1728407707786,0.40965,2442.2,2441.9,3.61748]
[1728407707988,0.40965,2442.2,2441.9,0.40968]
[1728407708287,0.40967,2442.1,2441.8,0.4097]
[1728407708487,3.2078,2442.6,2441.8,0.4097]
[1728407708686,3.2078,2442.6,2441.6,3.2078]
[1728407708880,0.40975,2441.7,2441.4,0.4118]
[1728407709187,0.40975,2441.7,2441.3,3.2078]
[1728407709188,1.02425,2441.9,2441.3,0.4098]
[1728407709386,0.40975,2441.7,2441.4,0.40977]
[1728407709586,0.40976,2441.6,2441.3,0.40979]
[1728407709985,0.40973,2441.7,2441.3,0.40979]
[1728407710194,0.40976,2441.6,2441.3,0.40979]
[1728407710391,1.02432,2441.8,2441.3,0.40979]
[1728407710779,0.40976,2441.6,2441.3,0.40979]
[1728407710979,0.40974,2441.7,2441.4,0.40978]
[1728407711185,4.23204,2442.0,2441.5,0.40976]
[1728407711479,1.02425,2441.9,2441.3,3.2078]
[1728407711680,0.40977,2441.5,2441.3,3.2078]
[1728407711990,0.40977,2441.5,2441.3,3.6176]
[1728407712190,0.40977,2441.5,2441.3,3.2078]
[1728407712382,4.096,2441.4,2441.0,3.2078]
[1728407712578,0.40983,2441.1,2441.0,3.2078]
[1728407713781,7.3808,2441.7,2441.0,3.2078]
[1728407713979,0.40979,2441.4,2441.1,0.40982]
[1728407714182,41.82443,2441.5,2441.0,3.2078]
[1728407714392,45.03223,2441.5,2441.0,3.2078]
[1728407714595,0.40978,2441.4,2441.1,0.40981]
[1728407714790,40.8,2441.5,2441.1,0.40983]
[1728407714986,0.40974,2441.7,2441.4,0.40978]
[1728407715186,3.2078,2441.8,2441.0,3.2078]
[1728407715386,3.61752,2441.8,2441.5,0.40976]
[1728407715585,3.61752,2441.8,2441.0,4.2324]
[1728407715586,3.2078,2441.8,2441.0,3.2078]
[1728407715791,0.40977,2441.5,2441.2,0.40981]
[1728407715988,0.4098,2441.3,2441.0,3.61764]
[1728407716194,0.4098,2441.3,2441.1,0.40983]
[1728407716389,0.4098,2441.3,2441.0,3.61763]
[1728407716589,0.40976,2441.6,2441.0,3.2078]
[1728407716791,0.40974,2441.7,2441.4,0.40977]
[1728407716995,0.40976,2441.6,2441.3,0.40979]
[1728407717590,0.40976,2441.6,2441.0,4.23241]
[1728407717591,1.02429,2441.8,2441.0,3.2078]
[1728407717992,0.40976,2441.6,2441.3,0.40979]
[1728407718193,1.02429,2441.8,2441.0,3.2078]
[1728407718194,1.43396,2441.9,2441.4,0.40977]
[1728407718389,10.2398,2442.1,2441.3,3.2078]
[1728407718390,4.173,2442.1,2441.3,3.2078]
[1728407718599,4.173,2442.1,2441.6,3.2078]
[1728407718791,0.40965,2442.2,2441.9,0.40968]
[1728407719197,0.40963,2442.3,2442.0,0.40967]
[1728407719392,4.173,2442.5,2441.9,3.2078]
[1728407719796,4.173,2442.5,2442.3,0.40962]
[1728407720105,3.26858,2442.6,2442.3,0.40962]
[1728407720498,2.859,2442.6,2441.9,4.23204]
[1728407720694,2.859,2442.6,2441.9,3.2078]
[1728407720902,0.40963,2442.3,2442.0,0.40967]
[1728407721208,0.40963,2442.4,2442.0,0.40968]
[1728407721398,0.40963,2442.3,2442.0,0.40968]
[1728407721601,3.88297,2442.6,2441.9,3.2078]
[1728407721799,0.40961,2442.4,2442.1,0.40965]
[1728407722898,0.40965,2442.2,2441.9,3.61748]
[1728407723102,3.88297,2442.6,2441.9,3.2078]
[1728407723294,0.40965,2442.2,2441.9,3.61748]
[1728407723701,0.40966,2442.1,2441.9,3.2078]
[1728407724004,0.40965,2442.2,2441.9,3.61749]
[1728407724208,0.40964,2442.3,2442.0,0.40967]
[1728407724407,0.40962,2442.4,2442.1,0.40965]
[1728407724998,1.02395,2442.7,2441.9,3.2078]
[1728407725204,0.40958,2442.6,2442.3,0.40962]
[1728407725400,3.79583,2442.9,2442.4,0.40961]
[1728407725401,0.40957,2442.7,2442.4,0.40961]
[1728407725704,44.59583,2442.9,2442.2,3.2078]
[1728407726016,0.40958,2442.6,2442.4,0.40961]
[1728407726199,0.40957,2442.7,2442.4,0.40961]
[1728407726506,0.40958,2442.6,2442.3,0.40961]
[1728407726901,0.4096,2442.5,2442.2,0.40964]
[1728407727407,4.0944,2442.4,2441.9,3.2078]
[1728407727599,0.40965,2442.2,2441.7,0.40971]
[1728407727801,4.23182,2442.5,2441.6,3.2078]
[1728407727802,0.40971,2441.9,2441.6,0.40974]
[1728407728201,1.02411,2442.3,2441.2,8.16233]
[1728407728399,3.93,2442.4,2441.2,3.2078]
[1728407728400,4.23192,2442.2,2441.2,3.2078]
[1728407728605,0.40974,2441.7,2441.2,3.2078]
[1728407728804,3.2078,2442.2,2441.2,3.2078]
[1728407729004,1.02423,2442.0,2441.2,3.2078]
[1728407729203,0.40967,2442.1,2441.8,0.40971]
[1728407729408,0.40966,2442.2,2441.9,0.40969]
[1728407729608,0.40968,2442.0,2441.7,0.40972]
[1728407729917,0.40968,2442.1,2441.8,0.40971]
[1728407730307,1.02409,2442.3,2441.8,0.40971]
[1728407730510,0.40968,2442.1,2441.8,0.40971]
[1728407730705,0.40968,2442.0,2441.8,0.40971]
[1728407730906,0.40968,2442.0,2441.7,0.40973]
[1728407731109,1.02414,2442.2,2441.5,3.2078]
[1728407731307,0.40968,2442.0,2441.5,3.2078]
[1728407731505,0.40968,2442.0,2441.7,0.40972]
[1728407732212,1.02414,2442.2,2441.7,0.40972]
[1728407732213,0.4097,2441.9,2441.7,0.40972]
[1728407732413,1.02414,2442.2,2441.7,0.40972]
[1728407732608,0.4097,2442.0,2441.7,0.40972]
[1728407732920,0.4097,2442.0,2441.5,3.2078]
[1728407732921,0.40971,2441.9,2441.5,3.2078]
[1728407733217,1.02414,2442.2,2441.8,0.40971]
[1728407733218,0.40969,2442.0,2441.8,0.40971]
[1728407733517,0.4097,2441.9,2441.7,0.40972]
[1728407734620,0.4097,2441.9,2441.6,0.40973]
[1728407734811,0.4097,2441.9,2441.6,1.61373]
[1728407735216,0.4097,2441.9,2441.6,1.204]
[1728407735414,0.4097,2441.9,2441.7,0.40972]
[1728407735610,1.02414,2442.2,2441.6,1.204]
[1728407735811,0.40972,2441.8,2441.6,1.61374]
[1728407736016,0.40972,2441.8,2441.6,1.204]
[1728407736617,0.40972,2441.8,2441.6,1.61374]
[1728407736921,0.40973,2441.7,2441.6,1.204]
[1728407737118,0.40973,2441.7,2441.6,0.8165]
[1728407737429,13.71273,2441.7,2441.6,0.8165]
[1728407737623,0.40978,2441.4,2441.3,0.3911]
[1728407738015,10.50578,2441.4,2441.3,0.3911]
[1728407738328,51.30578,2441.4,2441.3,0.3911]
[1728407738519,54.51358,2441.4,2441.3,0.3911]
[1728407739125,0.40981,2441.2,2441.1,0.4165]
[1728407739620,10.50661,2441.2,2441.1,0.4165]
[1728407739821,10.50661,2441.2,2440.5,3.61772]
[1728407739822,10.0968,2441.2,2440.4,0.4061]
[1728407740024,0.40991,2440.6,2440.5,0.4165]
[1728407740225,0.40991,2440.6,2440.5,0.0104]
[1728407740416,4.50751,2440.6,2440.5,0.0104]
[1728407740622,10.50751,2440.6,2440.5,0.0104]
[1728407741021,4.50751,2440.6,2440.5,0.0104]
[1728407741230,3.93,2440.8,2440.5,0.0104]
[1728407741529,4.83411045,2441.0,2440.5,0.0104]
[1728407741530,1.02467,2440.9,2440.5,0.0104]
[1728407741930,3.2078,2441.0,2440.5,0.0104]
[1728407742235,0.40991,2440.7,2440.5,0.0104]
[1728407742430,0.40991,2440.6,2440.5,0.0104]
[1728407742734,1.02467,2440.9,2440.3,0.3911]
[1728407742735,0.40995,2440.4,2440.3,0.3911]
[1728407742931,4.50755,2440.4,2440.3,0.3911]
[1728407743535,4.50755,2440.4,2440.3,0.79]
[1728407747029,0.40995,2440.4,2440.3,0.79]
[1728407747231,4.23255,2440.7,2440.3,0.79]
[1728407747533,0.40994,2440.5,2440.3,0.79]
[1728407747829,0.40995,2440.4,2440.3,0.79]
[1728407748231,10.50755,2440.4,2440.3,0.79]
[1728407748534,4.50755,2440.4,2440.3,0.79]
[1728407750835,0.41002,2440.0,2439.9,0.3837]
[1728407751038,0.41002,2440.0,2439.5,3.6196]
[1728407751039,3.93,2440.2,2439.5,3.5596]
[1728407751335,3.93,2440.2,2439.1,3.61796]
[1728407751336,0.41013,2439.4,2439.1,3.61796]
[1728407751538,1.02523,2439.6,2438.9,0.4204]
[1728407751736,41.82523,2439.6,2438.9,0.4204]
[1728407751934,0.41012,2439.4,2439.1,0.41016]
[1728407752134,0.41014,2439.3,2439.0,0.82978]
[1728407752541,41.82523,2439.6,2439.0,0.4196]
[1728407752743,0.41014,2439.3,2439.0,0.82978]
[1728407753532,0.41013,2439.3,2439.0,0.82977]
[1728407753742,0.41012,2439.4,2439.1,0.41016]
[1728407753934,0.41011,2439.5,2439.2,0.41014]
[1728407754139,43.748,2439.7,2439.3,0.81443]
[1728407754435,0.41009,2439.6,2439.3,0.81443]
[1728407754747,0.41011,2439.5,2439.3,0.4043]
[1728407755239,0.41012,2439.4,2439.3,0.4043]
[1728407756440,4.50932,2439.4,2439.3,0.4043]
[1728407757141,0.41012,2439.4,2439.3,0.4043]
[1728407757746,0.3906,2439.6,2439.0,0.4196]
[1728407757937,0.41016,2439.2,2439.0,0.8066]
[1728407758137,0.41017,2439.1,2439.0,0.8066]
[1728407759341,0.41022,2438.9,2438.6,3.61804]
[1728407759531,1.02545,2439.1,2438.7,1.22673]
[1728407759532,0.4102,2439.0,2438.7,1.22673]
[1728407760245,1.02545,2439.1,2438.7,1.22673]
[1728407760541,0.41021,2438.9,2438.7,1.22673]
[1728407760844,3.2078,2439.4,2438.7,0.8165]
[1728407761143,0.41014,2439.3,2439.1,0.41016]
[1728407761437,0.41014,2439.3,2439.2,0.402]
[1728407763643,0.4102,2438.9,2438.8,0.3842]
[1728407763840,0.4102,2438.9,2438.7,0.4145]
[1728407763841,4.23326,2439.1,2438.7,0.4145]
[1728407764036,0.41027,2438.5,2438.4,0.3842]
[1728407764234,3.2078,2438.8,2438.2,3.2078]
[1728407764430,0.41026,2438.6,2438.2,3.2078]
[1728407764637,0.41025,2438.7,2438.4,0.41028]
[1728407764831,4.23336,2438.8,2438.2,3.2078]
[1728407764832,3.61802,2438.8,2438.6,0.41025]
[1728407765054,1.84699,2439.0,2438.5,0.3842]
[1728407765055,0.41019,2439.0,2438.5,0.3842]
[1728407765340,0.41018,2439.1,2438.6,4.026]
[1728407765540,3.2078,2439.2,2438.6,4.026]
[1728407765845,3.2078,2439.2,2439.1,0.41017]
[1728407766042,3.2078,2439.2,2438.7,1.02559]
[1728407766243,0.41017,2439.1,2438.6,4.026]
[1728407766445,0.41017,2439.1,2438.9,0.4102]
[1728407766647,0.41017,2439.1,2438.6,4.026]
[1728407766949,3.61796,2439.2,2439.0,0.41018]
[1728407767138,3.61796,2439.2,2438.7,1.02559]
[1728407767341,0.41014,2439.3,2439.1,0.41016]
[1728407767545,0.7772,2439.5,2439.1,0.4069]
[1728407767844,0.41007,2439.7,2439.5,0.41009]
[1728407768442,1.02505,2440.0,2439.5,0.41009]
[1728407768940,1.2134,2440.1,2439.3,3.2078]
[1728407769140,0.41009,2439.6,2439.3,0.41013]
[1728407769538,0.41012,2439.5,2439.2,0.41014]
[1728407770144,0.41012,2439.5,2439.1,0.8158]
[1728407770340,0.8011,2439.6,2439.1,0.8158]
[1728407770646,0.8011,2439.6,2439.1,1.8412]
[1728407770851,1.21118,2439.6,2439.4,0.41011]
[1728407771343,3.2,2439.5,2438.8,0.3518]
[1728407771543,1.02558,2438.8,2438.1,0.3913]
[1728407771740,0.41032,2438.2,2438.1,0.3913]
[1728407772135,0.41034,2438.1,2438.0,0.3872]
[1728407772553,0.41038,2437.9,2437.7,0.3913]
[1728407772744,3.61038,2437.9,2437.7,0.3913]
[1728407772942,1.02578,2438.3,2437.7,0.3913]
[1728407772943,3.2078,2438.3,2437.7,0.3913]
[1728407773244,0.41032,2438.2,2437.8,0.3872]
[1728407773441,0.41031,2438.3,2437.8,0.3872]
[1728407773641,3.2078,2438.3,2437.8,0.3872]
[1728407773837,3.61811,2438.3,2437.8,0.3872]
[1728407774042,0.41032,2438.2,2437.8,0.3872]
[1728407774243,3.2078,2438.3,2437.8,0.3872]
[1728407774443,0.41032,2438.2,2437.8,0.3872]
[1728407774641,3.61812,2438.2,2437.8,0.3872]
[1728407774843,0.41034,2438.1,2437.8,0.3872]
[1728407775037,0.41037,2437.9,2437.8,0.3872]
[1728407775238,3.2078,2437.9,2437.7,0.3913]
[1728407775447,0.41042,2437.6,2437.5,0.3946]
[1728407775644,0.41041,2437.7,2437.5,0.3946]